fUSD/lending_fUSD_20250623
["ID","MTS","AMOUNT","RATE_DAILY","PERIOD"]
[367129837,1750665065555,-490.0,0.00027671,3]
[367129838,1750665065565,-999.65,0.00027671,3]
[367129839,1750665065574,-490.0,0.00027671,3]
[367129840,1750665065704,-490.0,0.00027671,3]
[367129841,1750665065714,-490.0,0.00027671,3]
[367129842,1750665065723,-490.0,0.00027671,3]
[367129843,1750665065732,-490.0,0.00027671,3]
[367129844,1750665065742,-490.0,0.00027671,3]
[367129845,1750665065751,-490.0,0.00027671,3]
[367129846,1750665065760,-490.0,0.00027671,3]
[367129847,1750665065770,-490.0,0.00027671,3]
[367129848,1750665065779,-633.53371046,0.00027671,3]
[367129849,1750665065789,-490.0,0.00027671,3]
[367129850,1750665065799,-490.0,0.00027671,3]
[367129851,1750665065808,-1066.85,0.00027671,3]
[367129852,1750665065818,-1100.39,0.00027671,3]
[367129853,1750665065827,-490.0,0.00027671,3]
[367129854,1750665065836,-629.46,0.00027671,3]
[367129855,1750665065846,-490.0,0.00027671,3]
[367129856,1750665065857,-490.0,0.00027671,3]
[367129857,1750665065867,-620.31,0.00027671,3]
[367129858,1750665065878,-490.0,0.00027671,3]
[367129859,1750665065887,-834.77,0.00027671,3]
[367129860,1750665065896,-490.0,0.00027671,3]
[367129861,1750665065906,-861.89,0.00027671,3]
[367129862,1750665065916,-490.0,0.00027671,3]
[367129863,1750665065930,-500.99,0.00027671,3]
[367129864,1750665065941,-629.12,0.00027671,3]
[367129865,1750665065950,-1274.6,0.00027671,3]
[367129866,1750665065959,-1305.62,0.00027671,3]
[367129867,1750665065972,-557.46,0.00027671,3]
[367129868,1750665065982,-490.0,0.00027671,3]
[367129869,1750665065992,-774.41,0.00027671,3]
[367129870,1750665066004,-549.68,0.00027671,3]
[367129871,1750665066014,-214.18512239,0.00027671,3]
[367129872,1750665066024,-490.0,0.00027671,3]
[367129873,1750665066033,-630.81,0.00027671,3]
[367129874,1750665066042,-1051.6,0.00027671,3]
[367129875,1750665066052,-490.0,0.00027671,3]
[367129876,1750665066062,-490.0,0.00027671,3]
[367129877,1750665066071,-559.89,0.00027671,3]
[367129878,1750665066080,-1923.63,0.00027671,3]
[367129879,1750665066089,-490.0,0.00027671,3]
[367129880,1750665066099,-490.0,0.00027671,3]
[367129881,1750665066108,-490.0,0.00027671,3]
[367129882,1750665066118,-574.93,0.00027671,3]
[367129883,1750665066128,-490.0,0.00027671,3]
[367129884,1750665066138,-490.0,0.00027671,3]
[367129885,1750665066147,-1572.34,0.00027671,3]
[367129886,1750665066156,-490.0,0.00027671,3]
[367129887,1750665066166,-490.0,0.00027671,3]
[367129888,1750665066175,-490.0,0.00027671,3]
[367129889,1750665066184,-490.0,0.00027671,3]
[367129890,1750665066193,-682.57,0.00027671,3]
[367129891,1750665066202,-490.0,0.00027671,3]
[367129892,1750665066211,-490.0,0.00027671,3]
[367129893,1750665066221,-490.0,0.00027671,3]
[367129894,1750665066230,-490.0,0.00027671,3]
[367129895,1750665066240,-1697.22,0.00027671,3]
[367129896,1750665066250,-490.0,0.00027671,3]
[367129897,1750665066259,-490.0,0.00027671,3]
[367129898,1750665066269,-490.0,0.00027671,3]
[367129899,1750665066279,-490.0,0.00027671,3]
[367129900,1750665066288,-628.6507772,0.00027671,3]
[367129901,1750665066297,-283.61802043,0.00027671,3]
[367129902,1750665066306,-490.0,0.00027671,3]
[367129903,1750665066315,-880.29,0.00027671,3]
[367129904,1750665066325,-490.0,0.00027671,3]
[367129905,1750665066334,-1269.91,0.00027671,3]
[367129906,1750665066343,-710.25,0.00027671,3]
[367129907,1750665066353,-490.0,0.00027671,3]
[367129908,1750665066361,-813.4,0.00027671,3]
[367129909,1750665066372,-490.0,0.00027671,3]
[367129910,1750665066381,-490.0,0.00027671,3]
[367129911,1750665066391,-2095.98,0.00027671,3]
[367129912,1750665066400,-490.0,0.00027671,3]
[367129913,1750665066409,-188.97121459,0.00027671,3]
[367129914,1750665066418,-348.05324814,0.00027671,3]
[367129915,1750665066428,-490.0,0.00027671,3]
[367129916,1750665066437,-860.56,0.00027671,3]
[367129917,1750665066446,-490.0,0.00027671,3]
[367129918,1750665066456,-490.0,0.00027671,3]
[367129919,1750665066466,-1189.08,0.00027671,3]
[367129920,1750665066475,-490.0,0.00027671,3]
[367129921,1750665066484,-490.0,0.00027671,3]
[367129922,1750665066493,-426.13047464,0.00027671,3]
[367129923,1750665066503,-167.76132446,0.00027671,2]
[367129924,1750665066512,-490.0,0.00027671,3]
[367129925,1750665066521,-592.68,0.00027671,3]
[367129926,1750665066530,-490.0,0.00027671,3]
[367129927,1750665066540,-490.0,0.00027671,3]
[367129928,1750665066549,-693.19,0.00027671,2]
[367129929,1750665066558,-1404.19,0.00027671,3]
[367129930,1750665066568,-490.0,0.00027671,3]
[367129931,1750665066578,-490.0,0.00027671,3]
[367129932,1750665066587,-490.0,0.00027671,3]
[367129933,1750665066597,-490.0,0.00027671,3]
[367129934,1750665066607,-1041.14,0.00027671,3]
[367129935,1750665066617,-490.0,0.00027671,3]
[367129936,1750665066628,-490.0,0.00027671,3]
[367129937,1750665066638,-267.17716223,0.00027671,3]
[367129938,1750665066647,-1153.44,0.00027671,3]
[367129939,1750665066657,-562.57,0.00027671,3]
[367129940,1750665066667,-490.0,0.00027671,3]
[367129941,1750665066676,-492.41762932,0.00027671,3]
[367129942,1750665066686,-490.0,0.00027671,3]
[367129943,1750665066695,-490.0,0.00027671,3]
[367129944,1750665066705,-490.0,0.00027671,3]
[367129945,1750665066715,-634.16591464,0.00027671,3]
[367129946,1750665066725,-490.0,0.00027671,3]
[367129947,1750665066735,-1104.92,0.00027671,3]
[367129948,1750665066744,-490.0,0.00027671,3]
[367129949,1750665066754,-490.0,0.00027671,3]
[367129950,1750665066764,-1408.6,0.00027671,3]
[367129951,1750665066774,-490.0,0.00027671,3]
[367129952,1750665066784,-490.0,0.00027671,3]
[367129953,1750665066793,-490.0,0.00027671,3]
[367129954,1750665066803,-281.01056484,0.00027671,3]
[367129955,1750665066813,-490.0,0.00027671,3]
[367129956,1750665066823,-490.0,0.00027671,2]
[367129957,1750665066832,-490.0,0.00027671,3]
[367129958,1750665066842,-490.0,0.00027671,3]
[367129959,1750665066852,-1311.06,0.00027671,3]
[367129960,1750665066862,-490.0,0.00027671,3]
[367129961,1750665066874,-490.0,0.00027671,3]
[367129962,1750665066884,-490.0,0.00027671,2]
[367129963,1750665066894,-490.0,0.00027671,3]
[367129964,1750665066903,-1143.07,0.00027671,3]
[367129965,1750665066913,-490.0,0.00027671,3]
[367129966,1750665066927,-354.52061501,0.00027671,3]
[367129967,1750665066937,-490.0,0.00027671,3]
[367129968,1750665066946,-490.0,0.00027671,3]
[367129969,1750665066956,-1915.03,0.00027671,3]
[367129970,1750665066967,-490.0,0.00027671,3]
[367129971,1750665066976,-482.90497544,0.00027671,2]
[367129972,1750665066986,-490.0,0.00027671,3]
[367129973,1750665066996,-290.1222691,0.00027671,3]
[367129974,1750665067005,-490.0,0.00027671,3]
[367129975,1750665067015,-1096.22,0.00027671,3]
[367129976,1750665067024,-490.0,0.00027671,3]
[367129977,1750665067033,-1133.12,0.00027671,3]
[367129978,1750665067043,-763.88,0.00027671,3]
[367129979,1750665067052,-490.0,0.00027671,3]
[367129980,1750665067061,-490.0,0.00027671,3]
[367129981,1750665067070,-490.0,0.00027671,3]
[367129982,1750665067079,-490.0,0.00027671,3]
[367129983,1750665067088,-490.0,0.00027671,3]
[367129984,1750665067098,-1026.56,0.00027671,3]
[367129985,1750665067107,-490.0,0.00027671,3]
[367129986,1750665067116,-212.50164135,0.00027671,3]
[367129987,1750665067127,-490.0,0.00027671,3]
[367129988,1750665067136,-1230.65,0.00027671,3]
[367129989,1750665067146,-490.0,0.00027671,3]
[367129990,1750665067155,-1008.53,0.00027671,3]
[367129991,1750665067164,-490.0,0.00027671,3]
[367129992,1750665067174,-300.0,0.00027671,3]
[367129993,1750665067183,-490.0,0.00027671,3]
[367129994,1750665067192,-1722.2,0.00027671,3]
[367129995,1750665067202,-490.0,0.00027671,3]
[367129996,1750665067211,-1588.78,0.00027671,3]
[367129997,1750665067220,-490.0,0.00027671,3]
[367129998,1750665067229,-490.0,0.00027671,3]
[367129999,1750665067238,-490.0,0.00027671,3]
[367130000,1750665067247,-213.49958687,0.00027671,3]
[367130001,1750665067257,-503.46150839,0.00027671,3]
[367130002,1750665067266,-490.0,0.00027671,3]
[367130003,1750665067275,-490.0,0.00027671,3]
[367130004,1750665067284,-221.38341478,0.00027671,3]
[367130005,1750665067293,-896.42,0.00027671,3]
[367130006,1750665067302,-490.0,0.00027671,3]
[367130007,1750665067311,-422.18960738,0.00027671,3]
[367130008,1750665067320,-961.21,0.00027671,3]
[367130009,1750665067329,-490.0,0.00027671,3]
[367130010,1750665067338,-490.0,0.00027671,3]
[367130011,1750665067347,-490.0,0.00027671,3]
[367130012,1750665067356,-633.05,0.00027671,3]
[367130013,1750665067365,-1367.92,0.00027671,3]
[367130014,1750665067375,-490.0,0.00027671,3]
[367130015,1750665067384,-502.08794799,0.00027671,3]
[367130016,1750665067393,-844.81,0.00027671,3]
[367130017,1750665067402,-542.77,0.00027671,3]
[367130018,1750665067412,-490.0,0.00027671,3]
[367130019,1750665067421,-611.73,0.00027671,3]
[367130020,1750665067430,-490.0,0.00027671,3]
[367130021,1750665067440,-807.21,0.00027671,3]
[367130022,1750665067450,-490.0,0.00027671,3]
[367130023,1750665067459,-490.0,0.00027671,3]
[367130024,1750665067468,-956.99,0.00027671,3]
[367130025,1750665067478,-1617.12,0.00027671,3]
[367130026,1750665067487,-490.0,0.00027671,3]
[367130027,1750665067497,-490.0,0.00027671,3]
[367130028,1750665067507,-490.0,0.00027671,3]
[367130029,1750665067516,-490.0,0.00027671,3]
[367130030,1750665067525,-490.0,0.00027671,3]
[367130031,1750665067534,-490.0,0.00027671,3]
[367130032,1750665067544,-490.0,0.00027671,3]
[367130033,1750665067553,-848.71,0.00027671,3]
[367130034,1750665067562,-790.76,0.00027671,3]
[367130035,1750665067572,-613.34,0.00027671,3]
[367130036,1750665067581,-490.0,0.00027671,3]
[367130037,1750665067590,-490.0,0.00027671,3]
[367130038,1750665067599,-742.62,0.00027671,3]
[367130039,1750665067609,-2760.23,0.00027671,3]
[367130040,1750665067618,-2345.46,0.00027671,2]
[367130041,1750665067629,-490.0,0.00027671,3]
[367130042,1750665067638,-490.0,0.00027671,3]
[367130043,1750665067648,-1288.97,0.00027671,3]
[367130044,1750665067657,-1422.0,0.00027671,3]
[367130045,1750665067666,-490.0,0.00027671,3]
[367130046,1750665067675,-1019.17,0.00027671,3]
[367130047,1750665067685,-490.0,0.00027671,3]
[367130048,1750665067694,-1327.38,0.00027671,3]
[367130049,1750665067703,-490.0,0.00027671,3]
[367130050,1750665067713,-490.0,0.00027671,3]
[367130051,1750665067723,-608.9,0.00027671,3]
[367130052,1750665067732,-490.0,0.00027671,3]
[367130053,1750665067741,-490.0,0.00027671,3]
[367130054,1750665067750,-490.0,0.00027671,3]
[367130055,1750665067760,-490.0,0.00027671,3]
[367130056,1750665067769,-1180.83,0.00027671,3]
[367130057,1750665067779,-490.0,0.00027671,3]
[367130058,1750665067788,-490.0,0.00027671,3]
[367130059,1750665067797,-490.0,0.00027671,3]
[367130060,1750665067807,-692.81,0.00027671,3]
[367130061,1750665067816,-490.0,0.00027671,3]
[367130062,1750665067827,-490.0,0.00027671,3]
[367130063,1750665067836,-490.0,0.00027671,3]
[367130064,1750665067847,-490.0,0.00027671,3]
[367130065,1750665067856,-778.5,0.00027671,3]
[367130066,1750665067865,-490.0,0.00027671,3]
[367130067,1750665067876,-490.0,0.00027671,3]
[367130068,1750665067886,-1065.89,0.00027671,3]
[367130069,1750665067895,-637.7,0.00027671,3]
[367130070,1750665068234,-490.0,0.00027671,3]
[367130071,1750665068244,-490.0,0.00027671,3]
[367130072,1750665068254,-490.0,0.00027671,3]
[367130073,1750665068264,-490.0,0.00027671,3]
[367130074,1750665068274,-490.0,0.00027671,3]
[367130075,1750665068283,-1166.57,0.00027671,3]
[367130076,1750665068293,-625.83,0.00027671,3]
[367130077,1750665068303,-1508.28,0.00027671,3]
[367130078,1750665068314,-526.99,0.00027671,3]
[367130079,1750665068324,-613.21,0.00027671,3]
[367130080,1750665068337,-1559.17,0.00027671,3]
[367130081,1750665068347,-490.0,0.00027671,3]
[367130082,1750665068358,-610.21,0.00027671,3]
[367130083,1750665068368,-714.94,0.00027671,3]
[367130084,1750665068381,-963.94,0.00027671,3]
[367130085,1750665068391,-868.65,0.00027671,3]
[367130086,1750665068401,-490.0,0.00027671,3]
[367130087,1750665068411,-1081.49,0.00027671,3]
[367130088,1750665068420,-490.0,0.00027671,3]
[367130089,1750665068430,-490.0,0.00027671,3]
[367130090,1750665068440,-566.45,0.00027671,3]
[367130091,1750665068450,-1232.32,0.00027671,3]
[367130092,1750665068459,-1100.0,0.00027671,3]
[367130093,1750665068468,-492.86227044,0.00027671,3]
[367130094,1750665068477,-632.94940875,0.00027671,3]
[367130095,1750665068487,-1694.0,0.00027671,3]
[367130096,1750665068497,-490.0,0.00027671,3]
[367130097,1750665068506,-490.0,0.00027671,3]
[367130098,1750665068516,-417.41127677,0.00027671,3]
[367130099,1750665068526,-1228.14,0.00027671,3]
[367130100,1750665068535,-490.0,0.00027671,3]
[367130101,1750665068545,-818.43,0.00027671,3]
[367130102,1750665068555,-490.0,0.00027671,3]
[367130103,1750665068565,-490.0,0.00027671,3]
[367130104,1750665068575,-490.0,0.00027671,3]
[367130105,1750665068584,-490.0,0.00027671,3]
[367130106,1750665068594,-490.0,0.00027671,3]
[367130107,1750665068604,-490.0,0.00027671,3]
[367130108,1750665068614,-490.0,0.00027671,3]
[367130109,1750665068623,-835.03,0.00027671,3]
[367130110,1750665068633,-551.94,0.00027671,3]
[367130111,1750665068643,-490.0,0.00027671,3]
[367130112,1750665068653,-490.0,0.00027671,3]
[367130113,1750665068663,-490.0,0.00027671,3]
[367130114,1750665068673,-490.0,0.00027671,3]
[367130115,1750665068682,-490.0,0.00027671,3]
[367130116,1750665068692,-490.0,0.00027671,3]
[367130117,1750665068702,-490.0,0.00027671,3]
[367130118,1750665068711,-1222.96,0.00027671,3]
[367130119,1750665068721,-490.0,0.00027671,3]
[367130120,1750665068731,-626.10339737,0.00027671,3]
[367130121,1750665068740,-490.0,0.00027671,3]
[367130122,1750665068751,-490.0,0.00027671,3]
[367130123,1750665068760,-490.0,0.00027671,3]
[367130124,1750665068770,-880.33,0.00027671,3]
[367130125,1750665068779,-490.0,0.00027671,3]
[367130126,1750665068789,-1308.03,0.00027671,3]
[367130127,1750665068798,-490.0,0.00027671,3]
[367130128,1750665068807,-490.0,0.00027671,3]
[367130129,1750665068818,-490.0,0.00027671,3]
[367130130,1750665068833,-749.38,0.00027671,3]
[367130131,1750665068850,-490.0,0.00027671,3]
[367130132,1750665068867,-490.0,0.00027671,3]
[367130133,1750665068878,-490.0,0.00027671,3]
[367130134,1750665068887,-588.0,0.00027671,3]
[367130135,1750665068897,-906.2,0.00027671,3]
[367130136,1750665068907,-490.0,0.00027671,3]
[367130137,1750665068916,-213.12774622,0.00027671,3]
[367130138,1750665068928,-632.2,0.00027671,3]
[367130139,1750665068938,-494.36190764,0.00027671,3]
[367130140,1750665068947,-736.07,0.00027671,3]
[367130141,1750665068957,-179.88604116,0.00027671,3]
[367130142,1750665068967,-490.0,0.00027671,3]
[367130143,1750665068976,-490.0,0.00027671,3]
[367130144,1750665068986,-490.0,0.00027671,3]
[367130145,1750665068997,-490.0,0.00027671,3]
[367130146,1750665069006,-1159.93,0.00027671,3]
[367130147,1750665069016,-490.0,0.00027671,3]
[367130148,1750665069025,-490.0,0.00027671,3]
[367130149,1750665069034,-717.88,0.00027671,3]
[367130150,1750665069043,-490.0,0.00027671,3]
[367130151,1750665069052,-490.0,0.00027671,3]
[367130152,1750665069062,-490.0,0.00027671,3]
[367130153,1750665069071,-793.46,0.00027671,3]
[367130154,1750665069080,-490.0,0.00027671,3]
[367130155,1750665069090,-490.0,0.00027671,3]
[367130156,1750665069100,-490.0,0.00027671,3]
[367130157,1750665069110,-1185.89,0.00027671,3]
[367130158,1750665069119,-490.0,0.00027671,3]
[367130159,1750665069130,-1745.89,0.00027671,3]
[367130160,1750665069139,-490.0,0.00027671,3]
[367130161,1750665069148,-1156.86,0.00027671,3]
[367130162,1750665069159,-490.0,0.00027671,3]
[367130163,1750665069170,-490.0,0.00027671,3]
[367130164,1750665069179,-991.3,0.00027671,3]
[367130165,1750665069189,-490.0,0.00027671,3]
[367130166,1750665069198,-490.0,0.00027671,3]
[367130167,1750665069208,-212.30721723,0.00027671,3]
[367130168,1750665069217,-490.0,0.00027671,3]
[367130169,1750665069227,-490.0,0.00027671,3]
[367130170,1750665069236,-490.0,0.00027671,3]
[367130171,1750665069245,-490.0,0.00027671,3]
[367130172,1750665069255,-494.63579919,0.00027671,3]
[367130173,1750665069264,-648.95,0.00027671,3]
[367130174,1750665069275,-815.02,0.00027671,3]
[367130175,1750665069284,-830.59,0.00027671,3]
[367130176,1750665069293,-490.0,0.00027671,3]
[367130177,1750665069302,-490.0,0.00027671,3]
[367130178,1750665069312,-490.0,0.00027671,3]
[367130179,1750665069322,-1055.32,0.00027671,3]
[367130180,1750665069331,-228.0540974,0.00027671,3]
[367130181,1750665069341,-490.0,0.00027671,3]
[367130182,1750665069350,-490.0,0.00027671,3]
[367130183,1750665069360,-490.0,0.00027671,3]
[367130184,1750665069370,-599.34,0.00027671,3]
[367130185,1750665069381,-1112.63,0.00027671,3]
[367130186,1750665069390,-490.0,0.00027671,3]
[367130187,1750665069400,-490.0,0.00027671,3]
[367130188,1750665069409,-490.0,0.00027671,3]
[367130189,1750665069418,-490.0,0.00027671,3]
[367130190,1750665069429,-1313.29,0.00027671,3]
[367130191,1750665069439,-573.3,0.00027671,3]
[367130192,1750665069448,-490.0,0.00027671,3]
[367130193,1750665069458,-490.0,0.00027671,3]
[367130194,1750665069468,-546.93,0.00027671,3]
[367130195,1750665069477,-490.0,0.00027671,3]
[367130196,1750665069487,-878.57,0.00027671,3]
[367130197,1750665069497,-284.80056714,0.00027671,3]
[367130198,1750665069506,-1631.12,0.00027671,3]
[367130199,1750665069516,-490.0,0.00027671,3]
[367130200,1750665069526,-490.0,0.00027671,3]
[367130201,1750665069535,-735.78,0.00027671,3]
[367130202,1750665069545,-636.12,0.00027671,3]
[367130203,1750665069554,-2393.15,0.00027671,3]
[367130204,1750665069564,-490.0,0.00027671,3]
[367130205,1750665069574,-490.0,0.00027671,3]
[367130206,1750665069584,-490.0,0.00027671,3]
[367130207,1750665069594,-490.0,0.00027671,3]
[367130208,1750665069603,-490.0,0.00027671,3]
[367130209,1750665069613,-490.0,0.00027671,3]
[367130210,1750665069622,-494.91,0.00027671,3]
[367130211,1750665069632,-490.0,0.00027671,3]
[367130212,1750665069642,-490.0,0.00027671,3]
[367130213,1750665069652,-490.0,0.00027671,3]
[367130214,1750665069662,-682.52,0.00027671,3]
[367130215,1750665069673,-490.0,0.00027671,3]
[367130216,1750665069683,-490.0,0.00027671,3]
[367130217,1750665069694,-992.14,0.00027671,3]
[367130218,1750665069705,-490.0,0.00027671,3]
[367130219,1750665069715,-792.47,0.00027671,3]
[367130220,1750665069724,-490.0,0.00027671,3]
[367130221,1750665069734,-490.0,0.00027671,3]
[367130222,1750665069744,-694.47,0.00027671,3]
[367130223,1750665069754,-490.0,0.00027671,3]
[367130224,1750665069764,-571.27,0.00027671,3]
[367130225,1750665069774,-642.38,0.00027671,3]
[367130226,1750665069784,-490.0,0.00027671,3]
[367130227,1750665069794,-490.0,0.00027671,3]
[367130228,1750665069805,-490.0,0.00027671,3]
[367130229,1750665069815,-1226.31,0.00027671,3]
[367130230,1750665069825,-490.0,0.00027671,3]
[367130231,1750665069835,-490.0,0.00027671,3]
[367130232,1750665069844,-1123.21,0.00027671,3]
[367130233,1750665069854,-490.0,0.00027671,3]
[367130234,1750665069864,-490.0,0.00027671,3]
[367130235,1750665069874,-631.31403888,0.00027671,3]
[367130236,1750665069884,-490.0,0.00027671,3]
[367130237,1750665069893,-1133.23,0.00027671,3]
[367130238,1750665069903,-518.3,0.00027671,3]
[367130239,1750665069913,-490.0,0.00027671,3]
[367130240,1750665069925,-490.0,0.00027671,3]
[367130241,1750665069935,-490.0,0.00027671,3]
[367130242,1750665069945,-490.0,0.00027671,3]
[367130243,1750665069955,-670.7,0.00027671,3]
[367130244,1750665069965,-490.0,0.00027671,3]
[367130245,1750665069975,-211.82371384,0.00027671,3]
[367130246,1750665069986,-490.0,0.00027671,3]
[367130247,1750665069995,-490.0,0.00027671,3]
[367130248,1750665070007,-490.0,0.00027671,3]
[367130249,1750665070018,-490.0,0.00027671,3]
[367130250,1750665070028,-490.0,0.00027671,3]
[367130251,1750665070038,-578.64,0.00027671,3]
[367130252,1750665070048,-490.0,0.00027671,3]
[367130253,1750665070058,-993.54,0.00027671,3]
[367130254,1750665070068,-490.0,0.00027671,3]
[367130255,1750665070077,-279.31347348,0.00027671,3]
[367130256,1750665070087,-486.70359252,0.00027671,3]
[367130257,1750665070096,-490.0,0.00027671,3]
[367130258,1750665070106,-490.0,0.00027671,3]
[367130259,1750665070115,-490.0,0.00027671,3]
[367130260,1750665070126,-490.0,0.00027671,3]
[367130261,1750665070135,-967.76,0.00027671,3]
[367130262,1750665070145,-490.0,0.00027671,3]
[367130263,1750665070154,-490.0,0.00027671,3]
[367130264,1750665070163,-508.66,0.00027671,3]
[367130265,1750665070173,-490.0,0.00027671,3]
[367130266,1750665070182,-3755.94,0.00027671,3]
[367130267,1750665070191,-490.0,0.00027671,3]
[367130268,1750665070201,-582.53,0.00027671,3]
[367130269,1750665070210,-505.58,0.00027671,3]
[367130270,1750665070220,-2144.51,0.00027671,3]
[367130271,1750665070229,-490.0,0.00027671,3]
[367130272,1750665070239,-490.0,0.00027671,3]
[367130273,1750665070248,-490.0,0.00027671,3]
[367130274,1750665070257,-490.0,0.00027671,3]
[367130275,1750665070267,-490.0,0.00027671,3]
[367130276,1750665070277,-180.0,0.00027671,3]
[367130277,1750665070287,-359.9063774,0.00027671,3]
[367130278,1750665070296,-490.0,0.00027671,3]
[367130279,1750665070305,-490.0,0.00027671,3]
[367130280,1750665070315,-490.0,0.00027671,3]
[367130281,1750665070324,-301.88,0.00027671,3]
[367130282,1750665070334,-561.18,0.00027671,3]
[367130283,1750665070344,-490.0,0.00027671,3]
[367130284,1750665070355,-528.73,0.00027671,3]
[367130285,1750665070365,-1111.73,0.00027671,3]
[367130286,1750665070375,-949.02,0.00027671,3]
[367130287,1750665070384,-490.0,0.00027671,3]
[367130288,1750665070394,-490.0,0.00027671,3]
[367130289,1750665070403,-490.0,0.00027671,3]
[367130290,1750665070412,-490.0,0.00027671,3]
[367130291,1750665070422,-4587.21,0.00027671,3]
[367130292,1750665070432,-193.7288707,0.00027671,3]
[367130293,1750665070442,-490.0,0.00027671,3]
[367130294,1750665070452,-525.95,0.00027671,3]
[367130295,1750665070461,-490.0,0.00027671,3]
[367130296,1750665070470,-490.0,0.00027671,3]
[367130297,1750665070479,-490.0,0.00027671,3]
[367130298,1750665070488,-490.0,0.00027671,3]
[367130299,1750665070498,-621.21,0.00027671,3]
[367130300,1750665070507,-490.0,0.00027671,3]
[367130301,1750665070516,-490.0,0.00027671,3]
[367130302,1750665070526,-1169.57,0.00027671,3]
[367130303,1750665070535,-2316.39,0.00027671,3]
[367130304,1750665070544,-490.0,0.00027671,3]
[367130305,1750665070553,-490.0,0.00027671,3]
[367130306,1750665070563,-490.0,0.00027671,3]
[367130307,1750665070573,-956.96,0.00027671,3]
[367130308,1750665070582,-1387.9,0.00027671,3]
[367130309,1750665070592,-691.28,0.00027671,3]
[367130310,1750665070601,-10717.07,0.00027671,3]
[367130311,1750665070610,-917.45,0.00027671,3]
[367130312,1750665070696,-1088.76,0.00027671,3]
[367130313,1750665070706,-490.0,0.00027671,3]
[367130314,1750665070715,-702.14,0.00027671,3]
[367130315,1750665070725,-595.21,0.00027671,3]
[367130316,1750665070735,-490.0,0.00027671,3]
[367130317,1750665070744,-490.0,0.00027671,3]
[367130318,1750665070753,-864.46,0.00027671,3]
[367130319,1750665070763,-4643.17,0.00027671,3]
[367130320,1750665070772,-216.3614531,0.00027671,3]
[367130321,1750665070781,-1079.72,0.00027671,3]
[367130322,1750665070791,-490.0,0.00027671,3]
[367130323,1750665070800,-490.0,0.00027671,3]
[367130324,1750665070810,-490.0,0.00027671,3]
[367130325,1750665070819,-817.64,0.00027671,3]
[367130326,1750665070828,-774.97,0.00027671,3]
[367130327,1750665070837,-1077.61,0.00027671,3]
[367130328,1750665070847,-1165.94,0.00027671,3]
[367130329,1750665070856,-490.0,0.00027671,3]
[367130330,1750665070865,-4614.84,0.00027671,3]
[367130331,1750665070874,-490.0,0.00027671,3]
[367130332,1750665070884,-490.0,0.00027671,3]
[367130333,1750665070893,-490.0,0.00027671,3]
[367130334,1750665070903,-490.0,0.00027671,2]
[367130335,1750665070912,-490.0,0.00027671,3]
[367130336,1750665070923,-2049.2,0.00027671,3]